bitfinex-derivatives/quotes_SOLF0:USTF0_20251119
["timestamp","ask_amount","ask_price","bid_price","bid_amount"]
[1763549574014,3.09,139.55,139.53,3.15]
[1763549574507,3.13894139,139.55,139.53,3.20482993]
[1763549577415,0.04894139,139.55,139.54,3.15]
[1763549577805,0.04894139,139.55,139.54,9.6044]
[1763549580906,0.04894139,139.55,139.53,0.05482993]
[1763549581214,0.04894139,139.55,139.53,3.20482993]
[1763549584807,0.04894139,139.55,139.53,9.65972993]
[1763549585219,0.04894139,139.55,139.54,3.15]
[1763549585621,3.13894139,139.55,139.53,0.05482993]
[1763549586318,9.59294139,139.55,139.53,0.05482993]
[1763549587816,3.24,139.54,139.53,0.05482993]
[1763549588513,0.04894139,139.55,139.53,3.05482993]
[1763549589018,3.28894139,139.55,139.53,3.05482993]
[1763549589221,0.04894139,139.55,139.53,3.05482993]
[1763549589919,0.04894139,139.55,139.53,9.50962993]
[1763549592824,0.04894139,139.55,139.54,3.0]
[1763549597727,0.04894139,139.55,139.54,9.4544]
[1763549598829,9.6917,139.6,139.56,3.0]
[1763549599422,3.24,139.62,139.57,3.0]
[1763549599628,0.04738393,139.61,139.59,3.0]
[1763549599925,0.04738393,139.61,139.59,9.4521]
[1763549600117,0.04738393,139.61,139.6,3.0]
[1763549600929,9.689,139.66,139.61,3.0]
[1763549601130,3.24,139.65,139.61,3.0]
[1763549601930,0.05466533,139.64,139.62,3.05477826]
[1763549605227,3.08,139.69,139.65,2.97]
[1763549606132,0.05145172,139.68,139.66,3.02119418]
[1763549611449,3.13145172,139.68,139.66,3.02119418]
[1763549611749,3.13145172,139.68,139.66,0.05119418]
[1763549615352,9.57945172,139.68,139.66,0.05119418]
[1763549615656,9.57945172,139.68,139.66,3.02119418]
[1763549616150,9.53,139.64,139.6,2.97]
[1763549616455,3.08,139.64,139.6,2.97]
[1763549617250,0.05200517,139.63,139.61,3.01928783]
[1763549618951,3.24200517,139.63,139.61,0.04928783]
[1763549620250,0.05200517,139.63,139.61,3.24928783]
[1763549621461,0.05200517,139.63,139.62,3.2]
[1763549627954,0.05200517,139.63,139.62,9.6507]
[1763549629564,0.05200517,139.63,139.61,0.04928783]
[1763549629565,3.15200517,139.63,139.61,0.04928783]
[1763549630863,0.05200517,139.63,139.61,3.24928783]
[1763549634663,0.05200517,139.63,139.61,0.04928783]
[1763549634664,3.15200517,139.63,139.61,0.04928783]
[1763549635165,3.1,139.62,139.61,0.04928783]
[1763549637469,0.05200517,139.63,139.61,3.24928783]
[1763549638163,0.05200517,139.63,139.62,3.2]
[1763549646881,3.15200517,139.63,139.61,0.04928783]
[1763549647885,9.60230517,139.63,139.61,0.04928783]
[1763549648083,9.60230517,139.63,139.61,3.14928783]
[1763549650481,6.50230517,139.63,139.61,3.14928783]
[1763549651870,0.05200517,139.63,139.61,3.14928783]
[1763549652577,3.21,139.62,139.61,0.04928783]
[1763549654384,9.71230517,139.63,139.61,3.14928783]
[1763549654578,6.50230517,139.63,139.61,3.14928783]
[1763549655686,9.71230517,139.63,139.61,3.14928783]
[1763549655886,9.71230517,139.63,139.61,0.04928783]
[1763549657779,0.05200517,139.63,139.61,3.14928783]
[1763549658184,3.26200517,139.63,139.61,3.14928783]
[1763549658587,0.05200517,139.63,139.61,3.14928783]
[1763549658782,3.26200517,139.63,139.61,3.14928783]
[1763549662798,3.21,139.62,139.61,0.04928783]
[1763549663195,5.1382118,139.62,139.61,0.04928783]
[1763549663399,3.21,139.61,139.58,3.1]
[1763549663799,3.21,139.61,139.57,2.95]
[1763549664390,3.26,139.59,139.58,0.05242859]
[1763549664598,3.26,139.59,139.54,2.95]
[1763549665599,3.26,139.59,139.55,2.995827]
[1763549665800,3.31104138,139.58,139.55,2.995827]
[1763549666001,0.05104138,139.58,139.55,2.995827]
[1763549667802,6.6234671,139.67,139.62,2.95]
[1763549668001,3.26,139.67,139.62,2.95]
[1763549668207,3.26,139.65,139.62,2.95]
[1763549668911,3.30530682,139.65,139.62,2.99824132]
[1763549670410,9.75470682,139.65,139.62,2.99824132]
[1763549671508,0.04530682,139.65,139.62,2.99824132]
[1763549671710,0.04530682,139.65,139.63,2.95]
[1763549677714,0.04530682,139.65,139.63,9.4002]
[1763549677916,0.04530682,139.65,139.64,3.07]
[1763549678614,0.04530682,139.65,139.64,9.5198]
[1763549680819,0.04530682,139.65,139.64,3.07]
[1763549682016,0.04530682,139.65,139.63,3.07]
[1763549683021,2.99530682,139.65,139.62,3.11824132]
[1763549683214,0.04530682,139.65,139.62,3.11824132]
[1763549684918,0.04530682,139.65,139.62,9.56894132]
[1763549685318,0.04530682,139.65,139.63,3.07]
[1763549694526,0.04530682,139.65,139.63,9.5202]
[1763549695936,0.04530682,139.65,139.64,3.07]
[1763549702842,2.95,139.63,139.62,0.04824132]
[1763549703235,19.8582118,139.63,139.62,0.04824132]
[1763549706245,4.8782118,139.63,139.62,0.04824132]
[1763549706542,14.98,139.64,139.62,3.11824132]
[1763549708239,18.02,139.64,139.62,3.11824132]
[1763549709951,24.4699,139.64,139.62,3.11824132]
[1763549710153,3.04,139.63,139.62,0.04824132]
[1763549720247,8.3781118,139.64,139.62,3.11824132]
[1763549720453,24.4699,139.64,139.62,3.11824132]
[1763549721352,3.04,139.63,139.62,0.04824132]
[1763549721650,9.4903,139.63,139.62,0.04824132]
[1763549723059,3.04,139.63,139.62,0.04824132]
[1763549724358,14.98,139.64,139.62,3.13824132]
[1763549724862,17.96,139.64,139.62,3.13824132]
[1763549729555,0.04530682,139.65,139.62,9.58894132]
[1763549729760,0.04530682,139.65,139.63,3.09]
[1763549729955,3.02530682,139.65,139.63,3.09]
[1763549737463,9.47470682,139.65,139.62,0.04824132]
[1763549737669,3.02530682,139.65,139.62,0.04824132]
[1763549738070,9.5903,139.63,139.62,0.04824132]
[1763549738766,3.14,139.63,139.62,0.04824132]
[1763549738973,3.14,139.64,139.62,0.04824132]
[1763549739472,9.5898,139.64,139.62,0.04824132]
[1763549739772,3.14,139.63,139.62,0.04824132]
[1763549740768,6.4498,139.64,139.62,0.04824132]
[1763549740966,3.18530682,139.65,139.62,3.15824132]
[1763549741370,3.18530682,139.65,139.62,0.04824132]
[1763549741869,6.4499,139.64,139.62,0.04824132]
[1763549742070,3.14,139.63,139.62,0.04824132]
[1763549745975,9.5903,139.63,139.62,0.04824132]
[1763549748779,3.14,139.63,139.62,0.04824132]
[1763549755286,3.18530682,139.65,139.62,3.15824132]
[1763549755587,18.16530682,139.65,139.62,3.15824132]
[1763549755785,3.14,139.64,139.62,3.15824132]
[1763549761781,3.14,139.64,139.62,0.04824132]
[1763549763994,9.5903,139.63,139.62,0.04824132]
[1763549765495,3.14,139.63,139.62,0.04824132]
[1763549765986,3.18530682,139.65,139.62,0.04824132]
[1763549767095,3.14,139.64,139.62,0.04824132]
[1763549767487,3.14,139.64,139.62,3.10824132]
[1763549767690,3.22530682,139.65,139.62,3.10824132]
[1763549773000,3.18,139.64,139.62,3.10824132]
[1763549778504,9.6299,139.64,139.62,0.04824132]
[1763549778703,3.18,139.63,139.62,0.04824132]
[1763549779294,9.6303,139.63,139.62,0.04824132]
[1763549779492,3.18,139.63,139.57,6.670373]
[1763549780006,3.18,139.59,139.57,6.670373]
[1763549780403,3.23016494,139.59,139.57,0.04628791]
[1763549781907,3.18,139.58,139.57,0.04628791]
[1763549785410,9.6326,139.58,139.57,0.04628791]
[1763549786906,11.56339675,139.58,139.57,0.04628791]
[1763549787309,6.4541,139.55,139.51,3.21]
[1763549787610,3.09,139.54,139.5,16.336373]
[1763549788511,3.14155216,139.53,139.51,3.26297507]
[1763549792107,0.05155216,139.53,139.51,9.71877507]
[1763549792304,0.05155216,139.53,139.52,3.21]
[1763549795620,0.05155216,139.53,139.52,9.6654]
[1763549796318,100.3566,139.61,139.54,3.21]
[1763549796319,3.09,139.58,139.54,3.21]
[1763549797222,3.1370793,139.57,139.55,0.0532134]
[1763549797526,0.0470793,139.57,139.55,3.2632134]
[1763549798010,0.0470793,139.57,139.56,2.99]
[1763549806633,0.0470793,139.57,139.56,9.4435]
[1763549820634,9.6207,139.63,139.56,2.99]
[1763549820825,9.6207,139.63,139.59,2.99]
[1763549821032,3.17,139.62,139.59,2.99]
[1763549821335,3.17,139.6,139.56,2.99]
[1763549821731,3.21634491,139.59,139.57,3.03846234]
[1763549824832,3.21634491,139.59,139.57,0.04846234]
[1763549827038,9.66924491,139.59,139.57,0.04846234]
[1763549827239,3.17,139.58,139.57,0.04846234]
[1763549827832,3.12,139.56,139.5,3.26]
[1763549828036,3.12,139.57,139.5,3.26]
[1763549828444,3.12,139.57,139.51,3.26]
[1763549828844,3.17018453,139.55,139.53,0.04978298]
[1763549833644,0.05018453,139.55,139.53,3.30978298]
[1763549834848,0.05018453,139.55,139.54,3.26]
[1763549838539,3.12,139.59,139.56,3.26]
[1763549839452,3.16880362,139.59,139.56,3.30740694]
[1763549839952,3.16880362,139.59,139.57,3.26]
[1763549840852,3.16880362,139.59,139.56,6.50140694]
[1763549841041,3.16880362,139.59,139.56,0.04740694]
[1763549842142,3.16880362,139.59,139.56,3.30740694]
[1763549842647,3.16880362,139.59,139.56,0.04740694]
[1763549844450,9.62160362,139.59,139.56,0.04740694]
[1763549844657,3.23,139.58,139.56,0.04740694]
[1763549845859,3.23,139.58,139.56,6.50150694]
[1763549846659,3.23,139.58,139.56,9.62150694]
[1763549846958,3.27880362,139.59,139.57,9.5736]
[1763549847860,3.27880362,139.59,139.56,3.16740694]
[1763549848558,3.27880362,139.59,139.56,9.62150694]
[1763549855161,3.27880362,139.59,139.56,0.04740694]
[1763549855162,3.23,139.58,139.56,0.04740694]
[1763549856860,3.23,139.57,139.56,0.04740694]
[1763549864565,9.6837,139.57,139.56,0.04740694]
[1763549865051,3.23,139.57,139.56,0.04740694]
[1763549866461,9.6837,139.57,139.56,0.04740694]
[1763549870864,3.07,139.56,139.52,9.4859]
[1763549871370,3.07,139.55,139.52,9.4859]
[1763549871764,3.07,139.55,139.52,3.03]
[1763549871972,3.12314867,139.55,139.52,0.04934251]
[1763549875973,3.07,139.53,139.52,0.04934251]
[1763549877862,18.10314867,139.55,139.52,3.07934251]
[1763549878374,3.07,139.54,139.52,3.07934251]
[1763549882880,0.05314867,139.55,139.53,3.03]
[1763549883977,0.05314867,139.55,139.53,9.4854]
[1763549886884,3.12314867,139.55,139.53,9.4854]
[1763549887884,0.05314867,139.55,139.54,3.12]
[1763549888074,0.05314867,139.55,139.54,9.5751]
[1763549889885,3.25314867,139.55,139.52,3.16934251]
[1763549896183,3.25314867,139.55,139.53,3.12]
[1763549899786,3.25314867,139.55,139.53,9.5754]
[1763549900988,3.2,139.61,139.55,3.12]
[1763549901983,0.0549033,139.59,139.57,3.16698935]
[1763549902889,0.0549033,139.59,139.57,9.62068935]
[1763549903293,0.0549033,139.59,139.58,3.12]
[1763549912198,0.0549033,139.59,139.57,0.04698935]
[1763549912199,3.1949033,139.59,139.57,0.04698935]
[1763549912699,3.14,139.58,139.57,0.04698935]
[1763549913001,0.0549033,139.59,139.57,3.12698935]
[1763549913197,0.0549033,139.59,139.58,3.08]
[1763549913890,0.0549033,139.59,139.58,9.5327]
[1763549921207,0.0549033,139.59,139.58,3.08]
[1763549924208,3.0749033,139.59,139.57,3.18698935]
[1763549928924,0.0549033,139.59,139.57,3.18698935]
[1763549929225,3.0749033,139.59,139.57,3.18698935]
[1763549930929,0.0549033,139.59,139.57,3.18698935]
[1763549931129,0.0549033,139.59,139.57,9.64058935]
[1763549931424,3.0749033,139.59,139.57,9.64058935]
[1763549931631,3.0749033,139.59,139.57,3.18698935]
[1763549935625,3.0749033,139.59,139.57,9.64058935]
[1763549935822,3.0749033,139.59,139.58,3.14]
[1763549938125,3.0749033,139.59,139.57,0.04698935]
[1763549938422,3.0749033,139.59,139.57,3.18698935]
[1763549939331,3.0749033,139.59,139.57,0.04698935]
[1763549939822,3.0749033,139.59,139.57,3.18698935]
[1763549951137,3.0749033,139.59,139.57,0.04698935]
[1763549951356,5.00355746,139.59,139.57,0.04698935]
[1763549951545,3.03,139.58,139.57,0.04698935]
[1763549957949,9.4832,139.58,139.57,0.04698935]
[1763549958250,11.41185416,139.58,139.57,0.04698935]
[1763549964153,9.4832,139.58,139.57,0.04698935]
[1763549965046,3.03,139.58,139.57,0.04698935]
[1763549967255,18.2349033,139.59,139.57,3.22698935]
[1763549968152,3.2,139.58,139.57,3.22698935]
[1763549975253,18.2349033,139.59,139.57,3.22698935]
[1763549976660,3.2549033,139.59,139.57,3.22698935]
[1763549979462,3.2549033,139.59,139.57,9.68058935]
[1763549979663,0.0549033,139.59,139.58,3.2]
[1763549980864,0.0549033,139.59,139.58,9.6532]
[1763549986165,3.24,139.63,139.61,3.2]
[1763549987068,3.29452833,139.63,139.61,3.24524507]
[1763549991172,3.24,139.62,139.61,0.04524507]
[1763549991375,3.24,139.62,139.57,3.2]
[1763549991676,3.24,139.62,139.55,3.2]
[1763549992470,3.2901062,139.6,139.57,3.24706029]
[1763549993075,3.2901062,139.6,139.57,9.70036029]
[1763549994082,3.2901062,139.6,139.58,3.2]
[1763549995577,9.7424062,139.6,139.58,3.2]
[1763549995779,3.24,139.59,139.57,9.70036029]
[1763549997480,3.24,139.59,139.58,3.2]
[1763549997680,3.24,139.59,139.57,9.70036029]
[1763550001084,3.24,139.59,139.57,3.24706029]
[1763550001268,3.24,139.59,139.57,0.04706029]
[1763550001676,3.24,139.59,139.57,3.24706029]
[1763550004882,9.6928,139.59,139.57,0.04706029]
[1763550005082,3.24,139.58,139.57,0.04706029]
[1763550005480,3.24,139.57,139.53,9.6551]
[1763550005678,3.24,139.57,139.53,3.2]
[1763550006478,3.24,139.55,139.54,0.04627496]
[1763550008583,3.24,139.55,139.54,3.19627496]
[1763550009686,3.11196201,139.56,139.54,3.19627496]
[1763550011285,0.05196201,139.56,139.54,3.19627496]
[1763550012687,0.05196201,139.56,139.55,9.6046]
[1763550013088,0.05196201,139.56,139.55,3.15]
[1763550013286,9.5146,139.55,139.54,0.04627496]
[1763550013691,3.06,139.55,139.54,0.04627496]
[1763550014791,3.11196201,139.56,139.54,3.19627496]
[1763550014982,0.05196201,139.56,139.54,3.19627496]
[1763550015290,3.11196201,139.56,139.54,0.04627496]
[1763550015492,9.5146,139.55,139.54,0.04627496]
[1763550016790,3.06,139.53,139.49,9.6069]
[1763550017595,3.06,139.53,139.5,9.6069]
[1763550017798,3.10676136,139.53,139.5,9.65439002]
[1763550017999,3.10676136,139.53,139.51,3.15]
[1763550023507,3.10676136,139.53,139.5,6.50439002]
[1763550023705,3.10676136,139.53,139.5,9.47439002]
[1763550024003,3.10676136,139.53,139.5,3.01749002]
[1763550031414,0.04676136,139.53,139.51,2.97]
[1763550033308,9.67236136,139.53,139.5,0.04749002]
[1763550033506,3.17,139.52,139.5,0.04749002]
[1763550034602,9.67256136,139.53,139.5,3.01749002]
[1763550035409,3.17,139.52,139.5,3.01749002]
[1763550035917,9.67256136,139.53,139.5,3.01749002]
[1763550036415,0.04676136,139.53,139.5,3.01749002]
[1763550038013,0.04676136,139.53,139.51,3.15]
[1763550039012,3.28676136,139.53,139.51,3.15]
[1763550040117,0.04676136,139.53,139.51,3.15]
[1763550040421,0.04676136,139.53,139.52,3.15]
[1763550040617,3.24,139.58,139.55,3.15]
[1763550041124,9.6923,139.61,139.57,6.4537]
[1763550041426,3.24,139.61,139.58,3.15]
[1763550041608,3.2907475,139.61,139.58,3.20317748]
[1763550044016,3.24,139.6,139.58,3.20317748]
[1763550045124,3.24,139.6,139.58,0.05317748]
[1763550045527,3.24,139.6,139.58,3.20317748]
[1763550045912,0.0507475,139.61,139.58,3.20317748]
[1763550046622,0.0507475,139.61,139.6,3.15]
[1763550052834,3.2907475,139.61,139.58,3.20317748]
[1763550055839,3.2907475,139.61,139.58,0.05317748]
[1763550056738,3.2907475,139.61,139.58,3.20317748]
[1763550059841,3.2907475,139.61,139.58,0.05317748]
[1763550062635,0.0507475,139.61,139.58,3.20317748]
[1763550064550,3.2907475,139.61,139.58,3.20317748]
[1763550066650,3.2907475,139.61,139.58,0.05317748]
[1763550067237,1.93124654,139.6,139.55,3.15]
[1763550067537,3.24,139.59,139.55,3.15]
[1763550068349,3.24,139.59,139.56,0.05324574]
[1763550068550,3.24,139.59,139.56,3.25324574]
[1763550070048,15.0107475,139.61,139.56,3.25324574]
[1763550070049,3.2707475,139.61,139.56,3.25324574]
[1763550070243,18.2307475,139.61,139.56,3.25324574]
[1763550071252,15.0107475,139.61,139.56,3.25324574]
[1763550072064,18.2307475,139.61,139.56,3.25324574]
[1763550074265,3.22,139.6,139.56,3.25324574]
[1763550077461,3.22,139.6,139.56,0.05324574]
[1763550079159,3.22,139.6,139.56,3.25324574]
[1763550080964,3.22,139.59,139.56,0.05324574]
[1763550081368,8.61429349,139.6,139.56,0.05324574]
[1763550081369,3.22,139.57,139.56,0.05324574]
[1763550081870,0.0543658,139.58,139.56,3.25324574]
[1763550082767,3.2743658,139.58,139.56,3.25324574]
[1763550083170,3.2743658,139.58,139.56,0.05324574]
[1763550087973,3.2743658,139.58,139.56,3.27324574]
[1763550088972,3.2743658,139.58,139.56,0.05324574]
[1763550090169,3.06,139.56,139.49,3.22]
[1763550090375,3.06,139.54,139.49,3.22]
[1763550091277,3.06,139.52,139.5,0.05283862]
[1763550091868,3.06,139.52,139.5,3.27283862]
[1763550092569,3.06,139.52,139.5,0.05283862]
[1763550093076,3.06,139.52,139.5,3.27283862]
[1763550093974,0.05475592,139.53,139.5,3.27283862]
[1763550096479,3.11475592,139.53,139.5,3.27283862]
[1763550097383,0.05475592,139.53,139.5,3.27283862]
[1763550097676,3.25475592,139.53,139.5,3.27283862]
[1763550101177,3.25475592,139.53,139.5,0.05283862]
[1763550103781,3.25475592,139.53,139.5,3.10283862]
[1763550119097,3.25475592,139.53,139.5,0.05283862]
[1763550120507,3.2,139.52,139.5,0.05283862]
[1763550125700,3.2,139.52,139.5,3.10283862]
[1763550127714,3.2,139.52,139.5,0.05283862]
[1763550134811,3.2,139.52,139.5,3.09283862]
[1763550135507,0.05475592,139.53,139.5,3.09283862]
[1763550136009,3.07475592,139.53,139.5,3.09283862]
[1763550138410,9.75780287,139.53,139.5,0.05283862]
[1763550138609,3.02,139.52,139.5,0.05283862]
[1763550140811,3.02,139.52,139.5,3.09283862]
[1763550141016,0.05475592,139.53,139.5,3.09283862]
[1763550141619,3.07475592,139.53,139.5,3.09283862]
[1763550141913,0.05475592,139.53,139.5,3.09283862]
[1763550143114,3.07475592,139.53,139.5,3.09283862]
[1763550146310,3.07475592,139.53,139.5,0.05283862]
[1763550146718,0.05475592,139.53,139.5,3.28283862]
[1763550147016,3.00475592,139.53,139.5,3.28283862]
[1763550147917,0.05475592,139.53,139.5,3.28283862]
[1763550149819,3.00475592,139.53,139.5,3.28283862]
[1763550151517,0.05475592,139.53,139.5,3.28283862]
[1763550152116,3.00475592,139.53,139.5,3.28283862]
[1763550153317,0.05475592,139.53,139.5,3.28283862]
[1763550153907,3.00475592,139.53,139.5,3.28283862]
[1763550154710,3.00475592,139.53,139.5,0.05283862]
[1763550156412,3.00475592,139.53,139.5,3.28283862]
[1763550158122,3.00475592,139.53,139.5,0.05283862]
[1763550158723,3.00475592,139.53,139.5,3.24283862]
[1763550166832,0.05475592,139.53,139.5,3.24283862]
[1763550171927,3.14475592,139.53,139.5,3.24283862]
[1763550172936,0.05475592,139.53,139.5,3.24283862]
[1763550179135,3.14475592,139.53,139.5,0.05283862]
[1763550179828,3.14475592,139.53,139.5,3.24283862]
[1763550182332,0.05475592,139.53,139.5,3.24283862]
[1763550183738,3.14475592,139.53,139.5,3.24283862]
[1763550186646,3.09,139.51,139.5,0.05283862]
[1763550190141,9.77304695,139.51,139.5,0.05283862]
[1763550192046,3.05,139.5,139.43,3.03]
[1763550192243,3.05,139.47,139.43,3.03]
[1763550193143,3.05,139.47,139.41,6.69978057]
[1763550193144,0.05048064,139.46,139.44,3.07951152]
[1763550194151,3.10048064,139.46,139.44,0.04951152]
[1763550194352,5.03124675,139.46,139.44,0.04951152]
[1763550194550,3.05,139.45,139.44,0.04951152]
[1763550199349,1.93076611,139.39,139.36,3.03]
[1763550199555,3.05,139.38,139.33,3.03]
[1763550200253,0.05172072,139.37,139.35,3.03]
[1763550201947,0.05172072,139.37,139.36,3.03]
[1763550204656,0.05172072,139.37,139.35,3.15]
[1763550206955,3.23172072,139.37,139.34,3.20460926]
[1763550207657,0.05172072,139.37,139.34,3.20460926]
[1763550207852,0.05172072,139.37,139.36,3.15]
[1763550209255,73.95052307,139.59,139.37,3.15]
[1763550209256,3.18,139.45,139.37,3.15]
[1763550209556,3.18,139.45,139.4,3.15]
[1763550210157,0.05376369,139.44,139.41,3.20456109]
[1763550210351,3.23376369,139.44,139.41,3.20456109]
[1763550212262,0.05376369,139.44,139.42,3.15]
[1763550213456,0.05376369,139.44,139.43,6.17020354]
[1763550213657,3.18,139.49,139.44,3.15]
[1763550214562,0.05330016,139.48,139.45,3.20300325]
[1763550216361,3.23330016,139.48,139.45,3.20300325]
[1763550217857,0.05330016,139.48,139.45,3.20300325]
[1763550218960,3.27330016,139.48,139.45,3.20300325]
[1763550219262,3.27330016,139.48,139.45,3.16300325]
[1763550219470,0.05330016,139.48,139.45,3.16300325]
[1763550219654,0.05330016,139.48,139.47,3.11]
[1763550219858,3.22,139.54,139.47,3.11]
[1763550220755,0.04688854,139.52,139.5,3.11]
[1763550225566,3.26688854,139.52,139.49,3.15691444]
[1763550229463,0.04688854,139.52,139.49,3.15691444]
[1763550229669,0.04688854,139.52,139.49,6.17711798]
[1763550229859,77.17052307,139.59,139.5,3.11]
[1763550230369,3.22,139.62,139.53,3.11]
[1763550230868,0.05291654,139.59,139.57,3.11]
[1763550231061,0.05291654,139.59,139.56,0.04819242]
[1763550231062,3.27291654,139.59,139.56,0.04819242]
[1763550231866,3.22,139.57,139.56,0.04819242]
[1763550232061,3.22,139.57,139.5,3.11]
[1763550233166,3.22,139.54,139.52,0.05091544]
[1763550233862,0.05155092,139.55,139.52,3.16091544]
[1763550234064,3.27155092,139.55,139.52,3.16091544]
[1763550234771,3.27155092,139.55,139.52,0.05091544]
[1763550236672,3.27155092,139.55,139.52,3.16091544]
[1763550236967,3.27155092,139.55,139.52,0.05091544]
[1763550238974,3.22,139.54,139.52,0.05091544]
[1763550240370,3.22,139.54,139.48,3.11]
[1763550240572,6.24020354,139.52,139.43,3.11]
[1763550241474,0.04690979,139.49,139.46,3.16390123]
[1763550243269,3.22,139.57,139.48,3.11]
[1763550244280,0.05093359,139.54,139.51,3.16008023]
[1763550254576,3.27093359,139.54,139.51,3.16008023]
[1763550254776,3.27093359,139.54,139.51,0.05008023]
[1763550255084,9.94204821,139.54,139.45,3.14]
[1763550255292,3.22,139.53,139.45,3.14]
[1763550255483,3.22,139.52,139.45,3.14]
[1763550256184,3.22,139.49,139.47,0.04764574]
[1763550257186,0.05440894,139.5,139.47,3.18764574]
[1763550257591,3.27440894,139.5,139.47,3.18764574]
[1763550259991,0.05440894,139.5,139.47,3.18764574]
[1763550265398,3.26440894,139.5,139.47,3.18764574]
[1763550268204,0.05440894,139.5,139.47,3.18764574]
[1763550270317,3.26440894,139.5,139.47,3.18764574]
[1763550273518,9.93552356,139.5,139.47,3.18764574]
[1763550273912,3.21,139.49,139.47,3.18764574]
[1763550274113,9.93552356,139.5,139.47,3.18764574]
[1763550275413,3.26440894,139.5,139.47,3.18764574]
[1763550283228,3.26440894,139.5,139.47,0.04764574]
[1763550283418,9.93552356,139.5,139.47,0.04764574]
[1763550283618,3.26440894,139.5,139.47,0.04764574]
[1763550284120,0.05440894,139.5,139.47,3.20764574]
[1763550284813,3.04440894,139.5,139.47,3.20764574]
[1763550292929,0.05440894,139.5,139.47,3.20764574]
[1763550299140,3.04440894,139.5,139.47,3.20764574]
[1763550300838,2.99,139.49,139.47,3.20764574]
[1763550301431,2.99,139.48,139.47,0.04764574]
[1763550301631,9.66111462,139.48,139.47,0.04764574]
[1763550301834,2.99,139.48,139.47,0.04764574]
[1763550302027,4.92222887,139.48,139.47,0.04764574]
[1763550302531,2.99,139.48,139.47,0.04764574]
[1763550302932,6.67111462,139.49,139.47,3.20764574]
[1763550303337,9.71552356,139.5,139.47,3.20764574]
[1763550303835,0.05440894,139.5,139.47,3.20764574]
[1763550306332,0.05440894,139.5,139.49,3.16]
[1763550311244,0.05440894,139.5,139.49,5.09222887]
[1763550313839,9.81111462,139.57,139.5,3.03]
[1763550314041,9.81111462,139.58,139.54,3.03]
[1763550314338,3.14,139.58,139.54,3.03]
[1763550314735,3.14,139.58,139.55,0.04780117]
[1763550314941,3.19281254,139.57,139.55,3.07780117]
[1763550315746,0.05281254,139.57,139.55,3.07780117]
[1763550315946,0.05281254,139.57,139.55,5.01003004]
[1763550316149,0.05281254,139.57,139.56,3.03]
[1763550317954,0.05281254,139.57,139.55,3.07780117]
[1763550318445,3.19281254,139.57,139.55,0.04780117]
[1763550321656,0.05281254,139.57,139.55,3.07780117]
[1763550326050,0.05281254,139.57,139.55,0.04780117]
[1763550326051,3.20281254,139.57,139.55,0.04780117]
[1763550332752,3.20281254,139.57,139.55,3.27780117]
[1763550333560,0.05281254,139.57,139.55,3.27780117]
[1763550335256,13.1729905,139.63,139.55,3.27780117]
[1763550335257,3.15,139.61,139.55,3.27780117]
[1763550336258,0.04550095,139.59,139.55,3.27780117]
[1763550340458,2.99550095,139.59,139.55,3.27780117]
[1763550341661,0.04550095,139.59,139.55,3.27780117]
[1763550344475,2.99550095,139.59,139.55,3.27780117]
[1763550345569,2.95,139.55,139.47,3.06]
[1763550346772,3.00425433,139.52,139.5,0.05384859]
[1763550351072,3.00425433,139.52,139.44,3.06]
[1763550351275,2.95,139.52,139.44,3.06]
[1763550352274,3.00166408,139.49,139.47,0.05322363]
[1763550354070,3.00166408,139.49,139.47,3.11322363]
[1763550354267,3.00166408,139.49,139.47,0.05322363]
[1763550371886,0.05166408,139.49,139.47,3.29322363]
[1763550372083,3.01,139.55,139.48,3.24]
[1763550373085,0.04733697,139.53,139.51,3.24]
[1763550382497,3.01,139.58,139.51,3.24]
[1763550382791,72.62580097,139.6,139.51,3.24]
[1763550382981,3.01,139.62,139.51,3.24]
[1763550383397,0.05420282,139.58,139.56,3.1]
[1763550383701,0.04628501,139.58,139.56,3.14535446]
[1763550388494,3.1,139.68,139.57,3.1]
[1763550389496,3.1,139.68,139.62,3.1]
[1763550389497,0.05156577,139.64,139.62,3.1]
[1763550390085,1.24659693,139.7,139.62,3.1]
[1763550390285,76.52432553,139.71,139.63,3.1]
[1763550390603,3.1,139.71,139.63,3.1]